[Event "Smuk Skak GM Tournament 2021"]
[Site "Skanderborg, Denmark"]
[Date "2021.08.15"]
[Round "2.4"]
[White "Nagy, Gabor"]
[Black "Ochsner, Bjørn Møller"]
[Result "1-0"]
[TimeControl "90 minutes + 30 minutes at move 40, 30 secs pr move from move 1"]
[WhiteTitle "GM"]
[BlackTitle "IM"]
[WhiteFideId "737119"]
[BlackFideId "1416928"]
[WhiteElo "2518"]
[BlackElo "2506"]

1. c4 {[%clk 01:30:18]} {[%emt 00:00:34]} e5 {[%clk 01:30:06]} {[%emt
00:00:56]} 2. Nc3 {[%clk 01:30:34]} {[%emt 00:00:13]} Bb4 {[%clk 01:30:27]}
{[%emt 00:00:09]} 3. Nd5 {[%clk 01:29:33]} {[%emt 00:01:31]} a5 {[%clk
01:30:39]} {[%emt 00:00:18]} 4. Nf3 {[%clk 01:29:28]} {[%emt 00:00:34]} d6
{[%clk 01:30:33]} {[%emt 00:00:37]} 5. a3 {[%clk 01:29:41]} {[%emt 00:00:17]}
Bc5 {[%clk 01:30:55]} {[%emt 00:00:08]} 6. d4 {[%clk 01:28:34]} {[%emt
00:01:37]} exd4 {[%clk 01:30:13]} {[%emt 00:01:12]} 7. Nxd4 {[%clk 01:28:53]}
{[%emt 00:00:10]} c6 {[%clk 01:19:59]} {[%emt 00:10:45]} 8. Nc3 {[%clk
01:28:51]} {[%emt 00:00:32]} Nf6 {[%clk 01:15:40]} {[%emt 00:04:49]} 9. Bg5
{[%clk 01:28:12]} {[%emt 00:01:09]} h6 {[%clk 00:52:21]} {[%emt 00:23:50]} 10.
Bh4 {[%clk 01:28:25]} {[%emt 00:00:16]} g5 {[%clk 00:51:03]} {[%emt 00:01:48]}
11. Bg3 {[%clk 01:28:32]} {[%emt 00:00:23]} Nh5 {[%clk 00:50:57]} {[%emt
00:00:37]} 12. e3 {[%clk 01:27:53]} {[%emt 00:01:09]} Nxg3 {[%clk 00:50:47]}
{[%emt 00:00:43]} 13. hxg3 {[%clk 01:28:14]} {[%emt 00:00:05]} Qe7 {[%clk
00:46:54]} {[%emt 00:04:23]} 14. Be2 {[%clk 01:27:15]} {[%emt 00:01:28]} Na6
{[%clk 00:37:20]} {[%emt 00:10:05]} 15. Qc2 {[%clk 01:22:26]} {[%emt 00:05:19]}
Bd7 {[%clk 00:34:21]} {[%emt 00:03:39]} 16. O-O-O {[%clk 01:19:40]} {[%emt
00:03:06]} O-O-O {[%clk 00:31:45]} {[%emt 00:03:06]} 17. Nf5 {[%clk 01:17:15]}
{[%emt 00:02:54]} Bxf5 {[%clk 00:19:24]} {[%emt 00:12:58]} 18. Qxf5+ {[%clk
01:17:33]} {[%emt 00:00:05]} Kb8 {[%clk 00:19:00]} {[%emt 00:00:55]} 19. Kb1
{[%clk 01:16:42]} {[%emt 00:01:20]} Nc7 {[%clk 00:13:05]} {[%emt 00:06:33]} 20.
g4 {[%clk 01:16:10]} {[%emt 00:01:03]} Ne8 {[%clk 00:09:00]} {[%emt 00:04:31]}
21. Rh3 {[%clk 01:15:17]} {[%emt 00:01:23]} Ng7 {[%clk 00:07:32]} {[%emt
00:01:55]} 22. Qc2 {[%clk 01:15:34]} {[%emt 00:00:12]} Qe6 {[%clk 00:06:21]}
{[%emt 00:01:43]} 23. Rdh1 {[%clk 01:14:33]} {[%emt 00:01:32]} f5 {[%clk
00:04:41]} {[%emt 00:02:07]} 24. gxf5 {[%clk 01:14:50]} {[%emt 00:00:14]} Qxf5
{[%clk 00:04:31]} {[%emt 00:00:40]} 25. Qxf5 Nxf5 {[%clk 00:05:00]} 26. Bg4
{[%clk 01:14:07]} {[%emt 00:00:21]} Rhf8 {[%clk 00:02:36]} {[%emt 00:02:56]} 27.
Ne4 {[%clk 01:12:34]} {[%emt 00:01:58]} Rde8 {[%clk 00:02:23]} {[%emt
00:00:43]} 28. Bxf5 Rxf5 {[%clk 00:02:52]} 29. g4 {[%clk 00:59:14]} {[%emt
00:00:20]} Rff8 {[%clk 00:02:08]} {[%emt 00:01:01]} 30. f3 {[%clk 00:59:02]}
{[%emt 00:01:01]} Bxe3 {[%clk 00:01:16]} {[%emt 00:01:21]} 31. Nxd6 {[%clk
00:59:25]} Rd8 {[%clk 00:01:02]} {[%emt 00:00:41]} 32. Nf5 {[%clk 00:58:15]}
{[%emt 00:01:42]} Bf4 {[%clk 00:01:24]} 33. Rxh6 {[%clk 00:58:37]} {[%emt
00:00:20]} Rd3 {[%clk 00:01:07]} {[%emt 00:00:38]} 34. Rh7 {[%clk 00:55:59]}
{[%emt 00:03:06]} Rfd8 {[%clk 00:01:10]} {[%emt 00:00:31]} 35. Rh8 {[%clk
00:54:56]} {[%emt 00:01:33]} Rxh8 {[%clk 00:01:26]} {[%emt 00:00:20]} 36. Rxh8+
{[%clk 00:55:24]} Ka7 {[%clk 00:01:33]} {[%emt 00:00:20]} 37. c5 {[%clk
00:52:43]} {[%emt 00:03:23]} Rd5 {[%clk 00:00:38]} {[%emt 00:01:21]} 38. b4
{[%clk 00:52:53]} {[%emt 00:00:20]} Rd3 {[%clk 00:00:48]} {[%emt 00:00:20]} 39.
Kc2 {[%clk 00:37:32]} {[%emt 00:15:34]} Rxa3 {[%clk 00:00:58]} {[%emt
00:00:20]} 40. b5 {[%clk 00:37:36]} {[%emt 00:00:26]} Rxf3 {[%clk 00:00:38]}
{[%emt 00:00:56]} 41. b6+ {[%clk 00:37:39]} {[%emt 00:00:21]} 1-0

[Event "Smuk Skak GM Tournament 2021"]
[Site "Skanderborg, Denmark"]
[Date "2021.08.15"]
[Round "2.5"]
[White "Lindgren, Phillip"]
[Black "Solodovnichenko, Yuri"]
[Result "0-1"]
[TimeControl "90 minutes + 30 minutes at move 40, 30 secs pr move from move 1"]
[WhiteTitle "IM"]
[BlackTitle "GM"]
[WhiteFideId "1713230"]
[BlackFideId "14104369"]
[WhiteElo "2356"]
[BlackElo "2546"]

1. d4 {[%clk 01:30:51]} {[%emt 00:00:06]} Nf6 {[%clk 01:30:36]} {[%emt
00:00:24]} 2. c4 {[%clk 01:31:12]} {[%emt 00:00:10]} e6 {[%clk 01:30:58]}
{[%emt 00:00:08]} 3. Nf3 {[%clk 01:31:14]} {[%emt 00:00:28]} Bb4+ {[%clk
01:31:19]} {[%emt 00:00:09]} 4. Nbd2 {[%clk 01:30:39]} {[%emt 00:01:05]} O-O
{[%clk 01:31:36]} {[%emt 00:00:12]} 5. a3 {[%clk 01:30:52]} {[%emt 00:00:18]}
Be7 {[%clk 01:32:00]} {[%emt 00:00:05]} 6. e3 {[%clk 01:26:51]} {[%emt
00:04:32]} c5 {[%clk 01:27:23]} {[%emt 00:05:07]} 7. dxc5 {[%clk 01:24:56]}
{[%emt 00:02:26]} a5 {[%clk 01:27:45]} {[%emt 00:00:08]} 8. b3 {[%clk
01:24:39]} {[%emt 00:00:47]} Bxc5 {[%clk 01:27:37]} {[%emt 00:00:37]} 9. Bb2
{[%clk 01:23:12]} {[%emt 00:01:57]} b6 {[%clk 01:27:04]} {[%emt 00:01:03]} 10.
Bd3 {[%clk 01:18:40]} {[%emt 00:05:02]} Bb7 {[%clk 01:27:23]} {[%emt 00:00:11]}
11. Qb1 {[%clk 01:14:47]} {[%emt 00:04:23]} h6 {[%clk 01:23:14]} {[%emt
00:04:38]} 12. Rg1 {[%clk 00:56:30]} {[%emt 00:18:47]} d5 {[%clk 00:49:15]}
{[%emt 00:34:38]} 13. g4 {[%clk 00:55:17]} {[%emt 00:01:40]} Nbd7 {[%clk
00:29:47]} {[%emt 00:20:00]} 14. g5 {[%clk 00:46:26]} {[%emt 00:09:18]} hxg5
{[%clk 00:30:07]} {[%emt 00:00:10]} 15. Rxg5 {[%clk 00:45:15]} {[%emt
00:01:38]} Re8 {[%clk 00:27:59]} {[%emt 00:02:45]} 16. cxd5 {[%clk 00:27:37]}
{[%emt 00:17:58]} exd5 {[%clk 00:27:36]} {[%emt 00:01:00]} 17. Ke2 {[%clk
00:25:26]} {[%emt 00:02:35]} Nf8 {[%clk 00:23:20]} {[%emt 00:04:46]} 18. b4
{[%clk 00:11:45]} {[%emt 00:14:15]} Bd6 {[%clk 00:21:21]} {[%emt 00:02:43]} 19.
Nd4 {[%clk 00:09:59]} {[%emt 00:02:02]} Ne6 {[%clk 00:17:14]} {[%emt 00:04:45]}
20. Nxe6 {[%clk 00:09:48]} {[%emt 00:00:41]} Rxe6 {[%clk 00:17:27]} {[%emt
00:00:20]} 21. Bd4 {[%clk 00:06:24]} {[%emt 00:03:44]} axb4 {[%clk 00:15:01]}
{[%emt 00:02:52]} 22. axb4 {[%clk 00:05:28]} {[%emt 00:01:26]} Rxa1 {[%clk
00:15:15]} {[%emt 00:00:15]} 23. Qxa1 {[%clk 00:03:43]} {[%emt 00:02:15]} Bxb4
{[%clk 00:13:33]} {[%emt 00:02:12]} 24. Nf3 {[%clk 00:02:50]} {[%emt 00:01:23]}
Bc5 {[%clk 00:07:36]} {[%emt 00:06:28]} 25. Qg1 {[%clk 00:02:55]} {[%emt
00:00:31]} Qf8 {[%clk 00:06:01]} {[%emt 00:01:58]} 26. Qg2 {[%clk 00:00:39]}
{[%emt 00:02:49]} Bxd4 {[%clk 00:00:59]} {[%emt 00:05:30]} 27. Nxd4 {[%clk
00:01:00]} {[%emt 00:00:10]} Re4 {[%clk 00:00:50]} {[%emt 00:00:42]} 28. Nf5
{[%clk 00:00:41]} {[%emt 00:00:52]} g6 {[%clk 00:00:41]} {[%emt 00:00:32]} 29.
Rxg6+ fxg6 {[%clk 00:01:08]} 30. Qxg6+ {[%clk 00:00:52]} {[%emt 00:00:10]} Kh8
{[%clk 00:01:32]} {[%emt 00:00:04]} 31. Bxe4 {[%clk 00:00:33]} {[%emt
00:00:57]} dxe4 {[%clk 00:01:49]} {[%emt 00:00:12]} 32. Nh6 {[%clk 00:00:31]}
{[%emt 00:00:25]} Qg7 {[%clk 00:00:46]} {[%emt 00:01:40]} 33. Nf7+ {[%clk
00:00:32]} {[%emt 00:00:20]} Kg8 {[%clk 00:01:15]} {[%emt 00:00:02]} 34. Nh6+
{[%clk 00:00:31]} {[%emt 00:00:30]} Kf8 {[%clk 00:01:27]} {[%emt 00:00:20]} 0-1

[Event "Smuk Skak GM Tournament 2021"]
[Site "Skanderborg, Denmark"]
[Date "2021.08.17"]
[Round "4.1"]
[White "Lindgren, Phillip"]
[Black "Janik, Igor"]
[Result "1-0"]
[TimeControl "90 minutes + 30 minutes at move 40, 30 secs pr move from move 1"]
[WhiteTitle "IM"]
[BlackTitle "IM"]
[WhiteFideId "1713230"]
[BlackFideId "1159259"]
[WhiteElo "2356"]
[BlackElo "2500"]

1. d4 {[%clk 01:30:55]} {[%emt 00:30:53]} Nf6 {[%clk 01:30:52]} 2. c4 {[%clk
01:31:17]} {[%emt 00:00:20]} g6 {[%clk 01:31:17]} 3. Nc3 {[%clk 01:30:43]}
{[%emt 00:01:01]} Bg7 {[%clk 01:31:35]} {[%emt 00:00:20]} 4. Nf3 {[%clk
01:30:22]} {[%emt 00:00:41]} d6 {[%clk 01:31:54]} {[%emt 00:00:20]} 5. e4
{[%clk 01:30:14]} {[%emt 00:00:41]} O-O {[%clk 01:32:14]} 6. Be2 {[%clk
01:30:26]} {[%emt 00:00:20]} Na6 {[%clk 01:32:38]} 7. O-O {[%clk 01:27:20]}
{[%emt 00:03:44]} e5 {[%clk 01:32:34]} {[%emt 00:00:41]} 8. Re1 {[%clk
01:21:53]} {[%emt 00:05:46]} c6 {[%clk 01:32:52]} {[%emt 00:00:20]} 9. Bf1
{[%clk 01:17:17]} {[%emt 00:05:05]} exd4 {[%clk 01:33:15]} 10. Nxd4 {[%clk
01:17:23]} {[%emt 00:00:20]} Ng4 {[%clk 01:33:36]} {[%emt 00:00:20]} 11. Nf3
{[%clk 01:03:11]} {[%emt 00:14:27]} Qb6 {[%clk 01:17:10]} {[%emt 00:16:56]} 12.
Re2 {[%clk 00:55:56]} {[%emt 00:07:44]} Be6 {[%clk 01:14:49]} {[%emt 00:02:53]}
13. h3 {[%clk 00:50:01]} {[%emt 00:06:30]} Ne5 {[%clk 01:15:10]} {[%emt
00:00:10]} 14. Nxe5 {[%clk 00:48:19]} {[%emt 00:02:14]} Bxe5 {[%clk 01:11:54]}
{[%emt 00:03:45]} 15. Be3 {[%clk 00:43:41]} {[%emt 00:05:05]} Qc7 {[%clk
01:10:02]} {[%emt 00:02:22]} 16. Rd2 {[%clk 00:40:26]} {[%emt 00:03:44]} Nc5
{[%clk 01:09:21]} {[%emt 00:01:21]} 17. Bd4 {[%clk 00:37:22]} {[%emt 00:03:24]}
a5 {[%clk 01:02:45]} {[%emt 00:07:03]} 18. g3 {[%clk 00:31:35]} {[%emt
00:06:16]} Rad8 {[%clk 00:54:16]} {[%emt 00:09:09]} 19. Qe2 {[%clk 00:29:09]}
{[%emt 00:03:03]} h5 {[%clk 00:48:43]} {[%emt 00:05:45]} 20. f4 {[%clk
00:27:36]} {[%emt 00:02:22]} Bxd4+ {[%clk 00:48:37]} {[%emt 00:00:20]} 21. Rxd4
{[%clk 00:27:58]} {[%emt 00:00:20]} Bc8 {[%clk 00:48:00]} {[%emt 00:01:01]} 22.
Qf2 {[%clk 00:26:35]} {[%emt 00:02:02]} Qe7 {[%clk 00:38:07]} {[%emt 00:10:10]}
23. Re1 {[%clk 00:24:04]} {[%emt 00:03:03]} Kg7 {[%clk 00:29:26]} {[%emt
00:09:14]} 24. e5 {[%clk 00:18:34]} {[%emt 00:06:00]} Ne6 {[%clk 00:28:48]}
{[%emt 00:01:02]} 25. exd6 {[%clk 00:16:00]} {[%emt 00:03:14]} Rxd6 {[%clk
00:27:49]} {[%emt 00:01:21]} 26. Rde4 {[%clk 00:12:32]} {[%emt 00:04:04]} Qd8
{[%clk 00:23:35]} {[%emt 00:04:33]} 27. b3 {[%clk 00:05:28]} {[%emt 00:07:33]}
b6 {[%clk 00:19:22]} {[%emt 00:04:44]} 28. Qe3 {[%clk 00:03:45]} {[%emt
00:02:12]} c5 {[%clk 00:16:32]} {[%emt 00:03:20]} 29. Nd5 {[%clk 00:02:40]}
{[%emt 00:01:34]} Bb7 {[%clk 00:16:31]} {[%emt 00:00:32]} 30. f5 {[%clk
00:01:46]} {[%emt 00:01:23]} gxf5 {[%clk 00:16:18]} {[%emt 00:00:43]} 31. Rh4
{[%clk 00:00:43]} {[%emt 00:01:33]} Bxd5 {[%clk 00:11:51]} {[%emt 00:04:58]} 32.
Rxh5 {[%clk 00:00:37]} {[%emt 00:00:36]} Qf6 {[%clk 00:12:04]} {[%emt
00:00:17]} 33. cxd5 {[%clk 00:00:33]} {[%emt 00:00:33]} Rxd5 {[%clk 00:12:20]}
{[%emt 00:00:14]} 34. Bc4 {[%clk 00:00:40]} {[%emt 00:00:23]} f4 {[%clk
00:11:45]} {[%emt 00:01:05]} 35. Qf3 {[%clk 00:00:33]} {[%emt 00:00:37]} Rxh5
{[%clk 00:11:46]} {[%emt 00:00:30]} 36. Qxh5 {[%clk 00:00:56]} {[%emt
00:00:06]} fxg3 {[%clk 00:11:57]} {[%emt 00:00:20]} 37. Qg4+ {[%clk 00:00:47]}
{[%emt 00:00:39]} Ng5 {[%clk 00:07:57]} {[%emt 00:04:32]} 38. Qxg3 {[%clk
00:00:37]} {[%emt 00:00:43]} Rh8 {[%clk 00:07:37]} {[%emt 00:00:52]} 39. Re5
{[%clk 00:00:34]} {[%emt 00:00:31]} Rxh3 {[%clk 00:04:30]} {[%emt 00:03:36]} 40.
Rxg5+ {[%clk 00:00:38]} {[%emt 00:00:41]} Kh6 {[%clk 00:04:53]} 41. Qxh3+
{[%clk 00:29:11]} {[%emt 00:02:02]} Kxg5 {[%clk 00:35:22]} 42. Qe3+ {[%clk
00:21:51]} {[%emt 00:07:47]} Kg6 {[%clk 00:35:32]} {[%emt 00:00:20]} 43. a4
{[%clk 00:19:17]} {[%emt 00:02:56]} Kg7 {[%clk 00:35:53]} {[%emt 00:00:10]} 44.
Kg2 {[%clk 00:19:16]} {[%emt 00:00:31]} Kf8 {[%clk 00:36:12]} {[%emt 00:00:10]}
45. Qf3 {[%clk 00:18:32]} {[%emt 00:01:12]} Qg5+ {[%clk 00:36:41]} 46. Kh3
{[%clk 00:18:30]} {[%emt 00:00:31]} Qh6+ {[%clk 00:37:05]} {[%emt 00:00:10]} 47.
Kg4 {[%clk 00:18:04]} {[%emt 00:01:02]} Qg6+ {[%clk 00:37:33]} 48. Kf4 {[%clk
00:18:10]} {[%emt 00:00:20]} Qf6+ {[%clk 00:37:40]} {[%emt 00:00:20]} 49. Kg3
{[%clk 00:14:32]} {[%emt 00:04:24]} Qg5+ {[%clk 00:38:04]} 50. Kf2 {[%clk
00:12:26]} {[%emt 00:02:43]} Qd2+ {[%clk 00:38:32]} 51. Be2 {[%clk 00:12:25]}
{[%emt 00:00:20]} Qd4+ {[%clk 00:39:00]} 52. Qe3 {[%clk 00:12:21]} {[%emt
00:00:41]} Qh4+ {[%clk 00:39:28]} 53. Kg2 {[%clk 00:12:23]} {[%emt 00:00:20]}
Qf6 {[%clk 00:39:55]} {[%emt 00:00:20]} 54. Qf3 {[%clk 00:11:14]} {[%emt
00:01:21]} Qg5+ {[%clk 00:39:32]} {[%emt 00:01:01]} 55. Kf1 {[%clk 00:11:02]}
{[%emt 00:00:41]} Qc1+ {[%clk 00:39:19]} {[%emt 00:00:41]} 56. Kf2 {[%clk
00:11:20]} {[%emt 00:00:20]} Qb2 {[%clk 00:39:41]} 57. Qa8+ {[%clk 00:10:39]}
{[%emt 00:01:21]} Kg7 {[%clk 00:40:05]} 58. Qg2+ {[%clk 00:10:34]} {[%emt
00:00:41]} Kf8 {[%clk 00:40:30]} 59. Qa8+ {[%clk 00:10:36]} {[%emt 00:00:20]}
Kg7 {[%clk 00:40:56]} {[%emt 00:00:20]} 60. Qd5 {[%clk 00:10:59]} Qf6+ {[%clk
00:41:06]} {[%emt 00:00:20]} 61. Ke3 {[%clk 00:10:26]} {[%emt 00:01:01]} Qh6+
{[%clk 00:41:23]} {[%emt 00:00:20]} 62. Kd3 {[%clk 00:10:04]} {[%emt 00:00:41]}
Qf4 {[%clk 00:41:51]} 63. Kc2 {[%clk 00:09:02]} {[%emt 00:01:42]} Qe3 {[%clk
00:41:07]} {[%emt 00:01:01]} 64. Qf3 {[%clk 00:08:41]} {[%emt 00:01:01]} Qh6
{[%clk 00:40:41]} {[%emt 00:01:01]} 65. Kb2 {[%clk 00:07:47]} {[%emt 00:01:21]}
Qd2+ {[%clk 00:40:51]} {[%emt 00:00:20]} 66. Kb1 {[%clk 00:07:47]} {[%emt
00:00:20]} Qd6 {[%clk 00:40:05]} {[%emt 00:01:21]} 67. Bc4 {[%clk 00:06:01]}
{[%emt 00:02:22]} Qg6+ {[%clk 00:40:34]} 68. Kb2 {[%clk 00:05:45]} {[%emt
00:00:41]} Kf8 {[%clk 00:41:00]} 69. Bd5 {[%clk 00:04:04]} {[%emt 00:02:22]}
Qg7+ {[%clk 00:41:23]} 70. Kc2 {[%clk 00:04:13]} {[%emt 00:00:20]} Ke7 {[%clk
00:41:39]} {[%emt 00:00:20]} 71. Qe4+ {[%clk 00:03:52]} {[%emt 00:00:41]} Kd6
{[%clk 00:41:41]} {[%emt 00:00:41]} 72. Bc4 {[%clk 00:03:25]} {[%emt 00:00:41]}
Qf6 {[%clk 00:41:49]} {[%emt 00:00:41]} 73. Kb1 {[%clk 00:02:07]} {[%emt
00:01:42]} Qf2 {[%clk 00:40:06]} {[%emt 00:02:02]} 74. Qd3+ {[%clk 00:00:56]}
{[%emt 00:01:42]} Kc7 {[%clk 00:40:22]} {[%emt 00:00:20]} 75. Qf1 {[%clk
00:01:11]} {[%emt 00:00:20]} 1-0

[Event "Smuk Skak GM Tournament 2021"]
[Site "Skanderborg, Denmark"]
[Date "2021.08.17"]
[Round "4.2"]
[White "Solodovnichenko, Yuri"]
[Black "Ochsner, Bjørn Møller"]
[Result "1/2-1/2"]
[TimeControl "90 minutes + 30 minutes at move 40, 30 secs pr move from move 1"]
[WhiteTitle "GM"]
[BlackTitle "IM"]
[WhiteFideId "14104369"]
[BlackFideId "1416928"]
[WhiteElo "2546"]
[BlackElo "2506"]

1. e4 {[%clk 01:30:57]} {[%emt 00:30:53]} c5 {[%clk 01:30:53]} 2. Nf3 {[%clk
01:31:19]} {[%emt 00:00:20]} d6 {[%clk 01:31:11]} 3. d4 {[%clk 01:31:37]} cxd4
4. Nxd4 {[%clk 01:32:03]} Nf6 {[%clk 01:31:51]} {[%emt 00:00:20]} 5. Nc3 {[%clk
01:32:31]} a6 {[%clk 01:32:16]} 6. a4 {[%clk 01:32:26]} {[%emt 00:00:41]} e5
{[%clk 01:32:17]} {[%emt 00:00:20]} 7. Nf3 {[%clk 01:32:48]} {[%emt 00:00:20]}
Be7 {[%clk 01:31:30]} {[%emt 00:01:21]} 8. Bg5 {[%clk 01:33:00]} Be6 {[%clk
01:27:59]} {[%emt 00:04:04]} 9. Bxf6 Bxf6 {[%clk 01:28:21]} 10. Nd5 {[%clk
01:32:26]} Bxd5 11. Qxd5 {[%clk 01:32:51]} Qc7 {[%clk 01:25:26]} {[%emt
00:01:01]} 12. Bc4 {[%clk 01:28:25]} {[%emt 00:05:05]} O-O {[%clk 01:25:11]}
{[%emt 00:00:41]} 13. O-O {[%clk 01:27:38]} {[%emt 00:01:21]} Nd7 {[%clk
01:23:13]} {[%emt 00:02:22]} 14. a5 {[%clk 01:21:29]} {[%emt 00:06:29]} b5
{[%clk 01:20:38]} {[%emt 00:03:04]} 15. Ba2 {[%clk 01:12:02]} {[%emt 00:09:58]}
Be7 {[%clk 01:19:49]} {[%emt 00:01:19]} 16. c3 {[%clk 01:02:58]} {[%emt
00:09:33]} Rac8 {[%clk 01:12:47]} {[%emt 00:07:33]} 17. Rfe1 {[%clk 00:56:18]}
{[%emt 00:07:20]} g6 {[%clk 00:52:04]} {[%emt 00:21:03]} 18. Re2 {[%clk
00:51:09]} {[%emt 00:05:46]} Kg7 {[%clk 00:51:13]} {[%emt 00:01:17]} 19. Qd1
{[%clk 00:51:27]} {[%emt 00:00:11]} Nf6 {[%clk 00:45:01]} {[%emt 00:06:58]} 20.
Ne1 {[%clk 00:50:04]} {[%emt 00:01:42]} Rb8 {[%clk 00:36:58]} {[%emt 00:08:28]}
21. Nc2 {[%clk 00:46:22]} {[%emt 00:04:24]} Qxa5 {[%clk 00:35:31]} {[%emt
00:02:02]} 22. Nb4 {[%clk 00:46:29]} {[%emt 00:00:20]} Qb6 {[%clk 00:27:39]}
{[%emt 00:08:08]} 23. Bd5 {[%clk 00:46:38]} {[%emt 00:00:20]} Nxd5 {[%clk
00:25:27]} {[%emt 00:02:43]} 24. Nxd5 {[%clk 00:41:25]} {[%emt 00:05:46]} Qb7
{[%clk 00:25:21]} {[%emt 00:00:41]} 25. Nxe7 Qxe7 {[%clk 00:25:49]} 26. Rxa6
{[%clk 00:40:36]} {[%emt 00:01:01]} Ra8 {[%clk 00:24:16]} {[%emt 00:02:02]} 27.
Rxa8 {[%clk 00:40:46]} {[%emt 00:00:20]} Rxa8 {[%clk 00:24:44]} 28. g3 {[%clk
00:41:02]} Ra6 {[%clk 00:20:09]} {[%emt 00:05:05]} 29. Rd2 {[%clk 00:38:33]}
{[%emt 00:02:58]} Qc7 {[%clk 00:16:28]} {[%emt 00:04:17]} 30. Rd5 {[%clk
00:32:29]} {[%emt 00:06:29]} Qc4 {[%clk 00:16:00]} {[%emt 00:01:01]} 31. Rxd6
{[%clk 00:31:31]} {[%emt 00:01:42]} Rxd6 32. Qxd6 {[%clk 00:31:55]} 1/2-1/2